bitfinex-derivatives/quotes_BTCF0:USTF0_20250114
["timestamp","ask_amount","ask_price","bid_price","bid_amount"]
[1736862097613,0.001,96534.0,96522.0,0.3608]
[1736862097809,0.001,96534.0,96530.0,0.3608]
[1736862098812,0.003,96540.0,96530.0,0.3608]
[1736862099214,0.006,96534.0,96530.0,0.3608]
[1736862099606,0.01,96534.0,96530.0,0.3608]
[1736862101210,0.01,96534.0,96531.0,0.001]
[1736862101414,0.0128457,96560.0,96531.0,0.301]
[1736862101608,0.051802,96564.0,96548.0,0.3608]
[1736862102717,0.01055443,96559.0,96548.0,0.3608]
[1736862103710,0.01655443,96559.0,96548.0,0.3618]
[1736862105213,0.01655443,96559.0,96549.0,0.001]
[1736862105818,0.01655443,96559.0,96556.0,0.3608]
[1736862106214,0.01055443,96559.0,96556.0,0.3608]
[1736862106416,0.01555443,96559.0,96556.0,0.3608]
[1736862108419,0.01555443,96559.0,96556.0,0.3618]
[1736862108922,0.01055443,96559.0,96556.0,0.3618]
[1736862109225,0.01555443,96559.0,96557.0,0.001]
[1736862109623,0.014,96559.0,96557.0,0.001]
[1736862109826,0.3608,96577.0,96557.0,0.001]
[1736862110028,0.3608,96577.0,96570.0,0.3608]
[1736862110225,0.159,96599.0,96570.0,0.3608]
[1736862110428,0.159,96599.0,96571.0,0.001]
[1736862110626,0.15463674,96590.0,96571.0,0.1677]
[1736862111120,0.15463674,96590.0,96571.0,0.001]
[1736862111322,0.051785,96596.0,96570.0,0.51543674]
[1736862111523,0.1,96600.0,96581.0,0.3608]
[1736862111731,0.1,96600.0,96599.0,0.3608]
[1736862113131,0.109,96600.0,96599.0,0.3618]
[1736862113325,0.111,96600.0,96599.0,0.3618]
[1736862115926,0.111,96600.0,96599.0,0.001]
[1736862116132,0.37865688,96600.0,96599.0,0.001]
[1736862117237,0.27706251,96600.0,96599.0,0.001]
[1736862117842,0.27706251,96600.0,96599.0,0.3618]
[1736862118743,0.27706251,96600.0,96599.0,0.3628]
[1736862119628,0.02496251,96600.0,96599.0,0.3628]
[1736862120432,0.00340252,96620.0,96599.0,0.3628]
[1736862120433,0.24865571,96619.0,96599.0,0.3628]
[1736862120632,0.24865571,96619.0,96609.0,0.15463674]
[1736862120828,0.24865571,96619.0,96612.0,0.3608]
[1736862121031,0.60945571,96619.0,96610.0,0.001]
[1736862121335,0.051773,96618.0,96601.0,0.001]
[1736862122635,0.3608,96610.0,96599.0,0.3608]
[1736862122837,0.05178,96606.0,96582.0,0.1526]
[1736862123239,0.05178,96606.0,96582.0,0.1536]
[1736862123444,0.09566447,96605.0,96582.0,0.1536]
[1736862123650,0.3608,96598.0,96581.0,0.3608]
[1736862123846,0.051785,96597.0,96581.0,0.3608]
[1736862124442,0.051785,96597.0,96562.0,0.18484938]
[1736862124443,0.051791,96585.0,96562.0,0.18484938]
[1736862124742,0.412601,96567.0,96556.0,0.18484938]
[1736862124947,0.051801,96565.0,96556.0,0.18484938]
[1736862125844,0.3608,96557.0,96556.0,0.18484938]
[1736862126146,0.3608,96557.0,96525.0,0.00155384]
[1736862126347,0.3608,96545.0,96534.0,0.3608]
[1736862127645,0.051813,96544.0,96525.0,0.00155384]
[1736862127842,0.15463674,96540.0,96525.0,0.00155384]
[1736862128239,0.15463674,96540.0,96534.0,0.009]
[1736862128444,0.051813,96544.0,96534.0,0.009]
[1736862128643,0.051813,96544.0,96534.0,0.013]
[1736862128843,0.051813,96544.0,96534.0,0.004]
[1736862129541,0.051813,96544.0,96534.0,0.009]
[1736862130250,0.051813,96544.0,96534.0,0.007]
[1736862130437,0.051813,96544.0,96534.0,0.009]
[1736862131251,0.051813,96544.0,96534.0,0.008]
[1736862132154,0.3608,96545.0,96534.0,0.008]
[1736862132354,0.3608,96545.0,96534.0,0.002]
[1736862132540,0.3608,96545.0,96534.0,0.007]
[1736862132741,0.3608,96545.0,96534.0,0.005]
[1736862132946,0.3608,96545.0,96534.0,0.006]
[1736862133145,0.3608,96545.0,96534.0,1.456]
[1736862133546,0.3608,96545.0,96534.0,0.006]
[1736862134050,0.051813,96544.0,96534.0,0.005]
[1736862134365,0.412618,96535.0,96525.0,0.00155384]
[1736862134655,0.051822,96526.0,96525.0,0.00155384]
[1736862135446,0.051822,96526.0,96525.0,0.009]
[1736862135642,0.1535,96534.0,96525.0,0.009]
[1736862135844,0.00088001,96535.0,96534.0,0.002]
[1736862136155,0.3608,96549.0,96534.0,0.002]
[1736862136553,0.3608,96549.0,96525.0,0.004]
[1736862136554,0.3608,96549.0,96525.0,0.005]
[1736862136752,0.3608,96549.0,96530.0,0.3608]
[1736862136954,0.3608,96549.0,96540.0,0.3608]
[1736862137148,0.3608,96557.0,96540.0,0.3608]
[1736862137351,0.051801,96567.0,96540.0,0.3608]
[1736862137651,0.15463674,96560.0,96543.0,0.3608]
[1736862137848,0.051801,96567.0,96543.0,0.3608]
[1736862138156,0.15463674,96553.0,96539.0,0.3608]
[1736862138351,0.51543674,96560.0,96539.0,0.3608]
[1736862138952,0.51543674,96560.0,96543.0,0.007]
[1736862138953,0.51643674,96560.0,96543.0,0.007]
[1736862139152,0.001,96549.0,96543.0,0.007]
[1736862140460,0.51643674,96560.0,96543.0,0.007]
[1736862140951,0.051805,96559.0,96539.0,0.009]
[1736862141459,0.3608,96549.0,96539.0,0.009]
[1736862141666,0.3608,96549.0,96543.0,0.007]
[1736862141853,0.051811,96548.0,96543.0,0.007]
[1736862142157,0.051811,96548.0,96539.0,0.011]
[1736862142363,0.051811,96548.0,96543.0,0.002]
[1736862142757,0.051811,96548.0,96543.0,0.006]
[1736862143365,0.051811,96548.0,96543.0,0.004]
[1736862143563,0.3608,96549.0,96543.0,0.004]
[1736862143768,0.051806,96558.0,96543.0,0.004]
[1736862144066,0.3608,96560.0,96548.0,0.15463674]
[1736862144261,0.30955405,96569.0,96546.0,0.3608]
[1736862144467,0.30955405,96569.0,96567.0,0.3608]
[1736862144468,0.00155405,96569.0,96567.0,0.3608]
[1736862146670,0.00455405,96569.0,96567.0,0.3608]
[1736862147364,0.01155405,96569.0,96567.0,0.001]
[1736862147560,0.00955405,96569.0,96567.0,0.001]
[1736862148069,0.00455405,96569.0,96554.0,0.3608]
[1736862148372,0.00455405,96569.0,96562.0,0.3608]
[1736862149066,0.00255405,96569.0,96554.0,0.3608]
[1736862149369,0.00255405,96569.0,96554.0,0.3638]
[1736862149874,0.3608,96575.0,96554.0,0.3648]
[1736862150664,0.051795,96578.0,96554.0,0.3648]
[1736862150965,0.051796,96576.0,96554.0,0.3618]
[1736862151561,0.051796,96576.0,96554.0,0.3648]
[1736862153967,0.15463674,96580.0,96554.0,0.3648]
[1736862154159,0.3608,96585.0,96562.0,0.3608]
[1736862155073,0.07193658,96584.0,96562.0,0.3608]
[1736862155772,0.07193658,96584.0,96560.0,0.15463674]
[1736862155969,0.07193658,96584.0,96555.0,0.001]
[1736862156162,0.07193658,96583.0,96555.0,0.001]
[1736862156370,0.07193658,96583.0,96561.0,0.3608]
[1736862157269,0.15463674,96580.0,96561.0,0.3608]
[1736862157666,0.07193658,96584.0,96561.0,0.3608]
[1736862158367,0.07193658,96579.0,96561.0,0.3608]
[1736862159372,0.07193658,96584.0,96561.0,0.3608]
[1736862159573,0.051794,96579.0,96561.0,0.3608]
[1736862159967,0.051804,96561.0,96541.0,0.1556]
[1736862160168,0.15463674,96551.0,96541.0,0.1556]
[1736862161368,0.412608,96553.0,96541.0,0.1556]
[1736862161567,0.001,96551.0,96541.0,0.1626]
[1736862161970,0.15563674,96551.0,96541.0,0.1626]
[1736862162178,0.15563674,96551.0,96541.0,0.1656]
[1736862162470,0.412613,96545.0,96541.0,0.01]
[1736862162672,0.412613,96545.0,96508.0,0.18484938]
[1736862162673,0.051813,96544.0,96508.0,0.18484938]
[1736862162867,0.051813,96544.0,96499.0,0.3608]
[1736862162868,0.3608,96515.0,96507.0,0.18484938]
[1736862163070,0.051829,96514.0,96507.0,0.18484938]
[1736862163787,0.051829,96514.0,96508.0,0.008]
[1736862164971,0.052829,96514.0,96508.0,0.015]
[1736862165168,0.001,96514.0,96508.0,0.015]
[1736862165372,0.001,96514.0,96509.0,0.3608]
[1736862167171,0.001,96514.0,96509.0,0.3628]
[1736862167367,0.37241335,96532.0,96509.0,0.3628]
[1736862167567,0.001,96514.0,96509.0,0.3688]
[1736862168478,0.37241335,96532.0,96509.0,0.3628]
[1736862168673,0.05182,96531.0,96509.0,0.3688]
[1736862169576,0.15463674,96530.0,96509.0,0.3688]
[1736862169780,0.001,96514.0,96509.0,0.3688]
[1736862171380,0.001,96514.0,96510.0,0.001]
[1736862171582,0.3608,96521.0,96510.0,0.001]
[1736862171882,0.3608,96521.0,96509.0,0.3688]
[1736862172274,0.20646274,96520.0,96509.0,0.3688]
[1736862172474,0.051826,96520.0,96509.0,0.3688]
[1736862172878,0.3608,96521.0,96510.0,0.002]
[1736862173784,0.3608,96521.0,96509.0,0.3688]
[1736862174385,0.001,96514.0,96509.0,0.3688]
[1736862174880,0.001,96514.0,96509.0,0.3628]
[1736862175081,0.15463674,96520.0,96509.0,0.3688]
[1736862175283,0.001,96521.0,96509.0,0.3668]
[1736862175581,0.001,96514.0,96510.0,0.002]
[1736862176089,0.3608,96524.0,96509.0,0.3628]
[1736862176292,0.001,96520.0,96509.0,0.3698]
[1736862177374,0.001,96520.0,96509.0,0.007]
[1736862177375,0.051826,96519.0,96509.0,0.007]
[1736862177579,0.412628,96516.0,96510.0,0.002]
[1736862177778,0.412628,96516.0,96510.0,0.008]
[1736862177779,0.001,96514.0,96510.0,0.008]
[1736862178186,0.051829,96513.0,96510.0,0.008]
[1736862178390,0.051829,96513.0,96510.0,0.002]
[1736862179081,0.051829,96513.0,96510.0,0.006]
[1736862179283,0.001,96514.0,96510.0,0.006]
[1736862179974,0.001,96514.0,96510.0,0.007]
[1736862180176,0.051829,96513.0,96510.0,0.007]
[1736862180492,0.208229,96513.0,96510.0,0.007]
[1736862181079,0.207229,96513.0,96510.0,0.001]
[1736862181785,0.209229,96513.0,96510.0,0.001]
[1736862182081,0.209229,96513.0,96500.0,0.1]
[1736862182082,0.051836,96501.0,96500.0,0.1]
[1736862182385,0.91928,96501.0,96464.0,0.1571]
[1736862182580,0.91928,96501.0,96461.0,0.3608]
[1736862182581,0.20648674,96474.0,96461.0,0.3608]
[1736862182787,0.3608,96464.0,96451.0,0.166]
[1736862183090,0.15463674,96461.0,96451.0,0.166]
[1736862183389,0.3608,96464.0,96451.0,0.166]
[1736862184189,0.3608,96464.0,96451.0,0.17]
[1736862184397,0.001,96461.0,96451.0,0.178]
[1736862185192,0.3618,96464.0,96451.0,0.178]
[1736862185385,0.3733599,96464.0,96451.0,0.178]
[1736862185781,0.3618,96464.0,96451.0,0.176]
[1736862185990,0.001,96464.0,96457.0,0.3608]
[1736862186384,0.3608,96488.0,96458.0,0.001]
[1736862186580,0.3608,96488.0,96477.0,0.15463674]
[1736862186890,0.3608,96500.0,96482.0,0.3608]
[1736862187388,0.3608,96500.0,96483.0,0.001]
[1736862187595,0.3608,96500.0,96491.0,0.3608]
[1736862188995,0.3608,96500.0,96491.0,0.3638]
[1736862189497,0.3608,96500.0,96491.0,0.003]
[1736862190388,0.3618,96500.0,96491.0,0.003]
[1736862190590,0.001,96500.0,96491.0,0.3608]
[1736862191193,0.002,96500.0,96491.0,0.3608]
[1736862191793,0.001,96500.0,96491.0,0.3608]
[1736862191992,0.002,96500.0,96491.0,0.3678]
[1736862192390,0.001,96500.0,96499.0,0.3608]
[1736862192694,0.3608,96523.0,96499.0,0.3608]
[1736862192896,0.3608,96523.0,96513.0,0.3608]
[1736862193199,0.0113068,96528.0,96513.0,0.3608]
[1736862193585,0.3608,96529.0,96513.0,0.3608]
[1736862194592,0.00255493,96521.0,96513.0,0.3708]
[1736862195097,0.001,96521.0,96514.0,0.001]
[1736862195285,0.051816,96539.0,96514.0,0.001]
[1736862195489,0.051816,96539.0,96526.0,0.3608]
[1736862196890,0.001,96539.0,96526.0,0.3608]
[1736862197697,0.052816,96539.0,96526.0,0.3608]
[1736862198196,0.07262673,96538.0,96526.0,0.3608]
[1736862199103,0.052816,96539.0,96526.0,0.3608]
[1736862199289,0.001,96539.0,96526.0,0.3608]
[1736862199487,0.001,96539.0,96529.0,0.15463674]
[1736862199688,0.001,96539.0,96538.0,0.3608]
[1736862200387,0.2471595,96557.0,96538.0,0.3608]
[1736862200605,0.2471595,96557.0,96547.0,0.3608]
[1736862201100,0.2471595,96557.0,96548.0,0.1653]
[1736862201309,0.07251385,96558.0,96548.0,0.1653]
[1736862201902,0.07251385,96558.0,96555.0,0.3608]
[1736862202098,0.27981371,96580.0,96555.0,0.3608]
[1736862202298,0.27981371,96580.0,96569.0,0.3608]
[1736862202695,0.2471595,96592.0,96570.0,0.001]
[1736862202889,0.2471595,96592.0,96578.0,0.3608]
[1736862203202,0.01121398,96591.0,96578.0,0.3608]
[1736862203998,0.051787,96593.0,96588.0,0.3608]
[1736862204592,0.004,96589.0,96588.0,0.3608]
[1736862205003,0.01,96589.0,96588.0,0.3608]
[1736862205490,0.004,96589.0,96588.0,0.3608]
[1736862205804,0.004,96589.0,96588.0,0.3618]
[1736862206203,0.006,96589.0,96588.0,0.3618]
[1736862212198,0.1,96600.0,96588.0,0.3628]
[1736862212403,0.00092,96619.0,96600.0,0.15463674]
[1736862212597,0.01113592,96621.0,96613.0,0.3608]
[1736862213104,0.051774,96616.0,96599.0,0.3608]
[1736862213305,0.51543674,96610.0,96599.0,0.3608]
[1736862213494,0.051783,96601.0,96593.0,0.3608]
[1736862214703,0.051783,96601.0,96593.0,0.3618]
[1736862215100,0.051783,96601.0,96593.0,0.001]
[1736862215305,0.051779,96608.0,96593.0,0.001]
[1736862215601,0.051783,96599.0,96593.0,0.001]
[1736862216313,0.0630921,96608.0,96595.0,0.3608]
[1736862216501,0.051778,96608.0,96595.0,0.3608]
[1736862216702,0.051778,96608.0,96593.0,0.001]
[1736862217502,0.052778,96608.0,96577.0,0.3608]
[1736862217805,0.052778,96608.0,96578.0,0.001]
[1736862218205,0.051778,96608.0,96593.0,0.001]
[1736862219004,0.051778,96608.0,96580.0,0.15463674]
[1736862219005,0.052778,96608.0,96580.0,0.15463674]
[1736862219212,0.052778,96608.0,96585.0,0.3608]
[1736862220303,0.052778,96608.0,96585.0,0.3618]
[1736862220905,0.051778,96608.0,96593.0,0.001]
[1736862221504,0.051778,96608.0,96585.0,0.3668]
[1736862222111,0.051778,96608.0,96593.0,0.001]
[1736862222815,0.051778,96608.0,96585.0,0.3658]
[1736862224411,0.051778,96608.0,96585.0,0.3668]
[1736862224617,0.051778,96608.0,96593.0,0.001]
[1736862225013,0.051778,96608.0,96585.0,0.3618]
[1736862225311,0.051778,96608.0,96593.0,0.3608]
[1736862225709,0.051778,96608.0,96593.0,0.3618]
[1736862226306,0.37224506,96610.0,96598.0,0.10300022]
[1736862226713,0.37224506,96610.0,96593.0,0.3618]
[1736862227209,0.01144506,96610.0,96603.0,0.3608]
[1736862227410,0.051773,96618.0,96603.0,0.3608]
[1736862227612,0.001,96610.0,96603.0,0.3608]
[1736862227820,0.001,96610.0,96593.0,0.3618]
[1736862228014,0.051778,96609.0,96593.0,0.3618]
[1736862228517,0.051778,96609.0,96593.0,0.3608]
[1736862230031,0.051778,96609.0,96593.0,0.3618]
[1736862230416,0.051783,96600.0,96593.0,0.001]
[1736862230725,0.051785,96597.0,96561.0,0.3608]
[1736862230933,0.4126,96569.0,96551.0,0.36235346]
[1736862231116,0.412604,96560.0,96559.0,0.16091365]
[1736862231320,0.412604,96560.0,96554.0,0.12612463]
[1736862231518,0.412604,96560.0,96522.0,0.3164]
[1736862231519,0.051807,96554.0,96545.0,0.18412771]
[1736862231727,0.3608,96546.0,96545.0,0.17206261]
[1736862232129,0.6608,96546.0,96545.0,0.17206261]
[1736862232428,0.3608,96546.0,96545.0,0.17206261]
[1736862232831,0.3608,96546.0,96522.0,0.16]
[1736862232832,0.61873758,96546.0,96522.0,0.16]
[1736862233033,0.3608,96538.0,96522.0,0.16]
[1736862233238,0.3608,96538.0,96523.0,0.3608]
[1736862233532,0.3608,96538.0,96522.0,0.16]
[1736862234036,0.07083095,96537.0,96522.0,0.164]
[1736862234629,0.07083095,96537.0,96527.0,0.3608]
[1736862235137,0.01,96545.0,96527.0,0.3608]
[1736862235138,0.001,96538.0,96527.0,0.3608]
[1736862235335,0.001,96538.0,96522.0,0.173]
[1736862235636,0.051816,96537.0,96522.0,0.173]
[1736862236033,0.3618,96538.0,96522.0,0.013]
[1736862236034,0.051821,96529.0,96522.0,0.013]
[1736862236237,0.412621,96529.0,96522.0,0.009]
[1736862236534,0.412621,96529.0,96527.0,0.003]
[1736862237135,0.412621,96529.0,96522.0,0.013]
[1736862237336,0.412621,96529.0,96522.0,0.004]
[1736862237541,0.412621,96529.0,96522.0,0.013]
[1736862237937,0.412621,96529.0,96522.0,0.004]
[1736862238141,0.052821,96528.0,96527.0,0.009]
[1736862238543,0.052821,96528.0,96522.0,0.004]
[1736862238740,0.052821,96528.0,96522.0,0.013]
[1736862239236,0.054821,96528.0,96527.0,0.003]
[1736862239934,0.054821,96528.0,96502.0,0.1569]
[1736862240143,0.051828,96517.0,96502.0,0.1569]
[1736862240336,0.3608,96516.0,96500.0,0.1]
[1736862240643,0.3608,96508.0,96500.0,0.1]
[1736862242034,0.3618,96508.0,96500.0,0.107]
[1736862242237,0.051833,96507.0,96500.0,0.107]
[1736862242544,0.051843,96488.0,96484.0,0.00155455]
[1736862242742,0.051847,96480.0,96463.0,0.164]
[1736862243043,0.15471612,96473.0,96463.0,0.164]
[1736862243741,0.20656312,96480.0,96463.0,0.164]
[1736862244839,0.001,96473.0,96464.0,0.3608]
[1736862245040,0.001,96473.0,96464.0,0.5137]
[1736862245344,0.001,96480.0,96464.0,0.5137]
[1736862245752,0.001,96480.0,96472.0,0.3608]
[1736862246046,0.3608,96503.0,96476.0,0.3608]
[1736862246237,0.15471612,96500.0,96488.0,0.3608]
[1736862246441,0.15471612,96500.0,96477.0,0.001]
[1736862246642,0.051842,96489.0,96476.0,0.3608]
[1736862247848,0.051845,96483.0,96472.0,0.001]
[1736862248041,0.05185,96474.0,96472.0,0.001]
[1736862248947,0.05185,96474.0,96463.0,0.5248]
[1736862249143,0.05185,96474.0,96472.0,0.004]
[1736862249445,0.15471612,96482.0,96472.0,0.004]
[1736862249742,0.15471612,96482.0,96472.0,0.005]
[1736862250550,0.37198064,96484.0,96473.0,0.3608]
[1736862250551,0.3608,96484.0,96473.0,0.3608]
[1736862251043,0.051845,96483.0,96473.0,0.3608]
[1736862251236,0.20656112,96483.0,96473.0,0.3608]
[1736862252146,0.051845,96483.0,96473.0,0.3608]
[1736862252748,0.3608,96509.0,96482.0,0.3608]
[1736862252952,0.051834,96505.0,96490.0,0.3608]
[1736862253145,0.15471612,96500.0,96483.0,0.319]
[1736862253345,0.051834,96505.0,96483.0,0.319]
[1736862253546,0.3608,96485.0,96473.0,0.004]
[1736862253753,0.41265,96475.0,96473.0,0.003]
[1736862254454,0.3608,96475.0,96473.0,0.003]
[1736862254650,0.3608,96475.0,96458.0,0.5254]
[1736862254854,0.3608,96475.0,96458.0,0.52592]
[1736862255351,0.3608,96475.0,96473.0,0.003]
[1736862255551,0.3608,96475.0,96473.0,0.004]
[1736862255946,0.3618,96475.0,96473.0,0.001]
[1736862256149,0.3618,96475.0,96463.0,0.171]
[1736862256339,0.3618,96475.0,96463.0,0.173]
[1736862256944,0.3618,96475.0,96463.0,0.171]
[1736862257143,0.3618,96475.0,96473.0,0.001]
[1736862257754,0.3608,96475.0,96473.0,0.004]
[1736862258359,0.3608,96475.0,96473.0,0.003]
[1736862258760,0.3608,96475.0,96473.0,0.002]
[1736862259355,0.051849,96476.0,96473.0,0.002]
[1736862259557,0.001,96474.0,96444.0,0.165]
[1736862259760,0.3608,96450.0,96444.0,0.165]
[1736862259958,0.3608,96461.0,96444.0,0.165]
[1736862260457,0.3608,96451.0,96442.0,0.3608]
[1736862261162,0.3608,96451.0,96437.0,0.1575]
[1736862261550,0.051863,96450.0,96437.0,0.1575]
[1736862261963,0.051858,96459.0,96437.0,0.1575]
[1736862262260,0.3608,96452.0,96437.0,0.1575]
[1736862262460,0.051863,96451.0,96437.0,0.1575]
[1736862263459,0.051863,96451.0,96443.0,0.00655513]
[1736862264563,0.3608,96444.0,96443.0,0.00655513]
[1736862264753,0.3608,96444.0,96443.0,0.01555513]
[1736862265762,0.3608,96444.0,96443.0,0.01655513]
[1736862265963,0.3618,96444.0,96443.0,0.01555513]
[1736862266362,0.6618,96444.0,96400.0,0.1]
[1736862266567,0.3548,96416.0,96401.0,0.3124]
[1736862266769,0.3608,96406.0,96401.0,0.3124]
[1736862267064,0.3608,96407.0,96401.0,0.3124]
[1736862268766,0.001,96407.0,96401.0,0.3144]
[1736862268964,0.001,96407.0,96402.0,0.3608]
[1736862270259,0.001,96407.0,96402.0,0.3638]
[1736862271163,0.001,96407.0,96402.0,0.3658]
[1736862272263,0.001,96407.0,96402.0,0.005]
[1736862274671,0.3618,96407.0,96402.0,0.005]
[1736862274972,0.051887,96406.0,96402.0,0.005]
[1736862275972,0.051887,96406.0,96402.0,0.002]
[1736862276160,0.051887,96406.0,96402.0,0.004]
[1736862276362,0.052887,96406.0,96402.0,0.006]
[1736862277772,0.3608,96403.0,96402.0,0.006]
[1736862278075,0.051889,96402.0,96373.0,0.3039]
[1736862278369,0.15471612,96383.0,96373.0,0.3039]
[1736862279367,0.15471612,96383.0,96373.0,0.1506]
[1736862279368,0.0519,96382.0,96373.0,0.1506]
[1736862279570,0.3608,96374.0,96373.0,0.006]
[1736862279773,0.412705,96374.0,96373.0,0.006]
[1736862279966,0.412705,96374.0,96373.0,0.008]
[1736862281273,0.412705,96374.0,96373.0,0.007]
[1736862282169,0.412705,96374.0,96373.0,0.002]
[1736862282775,0.413705,96374.0,96349.0,0.3608]
[1736862283071,0.3608,96366.0,96349.0,0.3608]
[1736862284581,0.3618,96366.0,96349.0,0.3608]
[1736862284770,0.001,96366.0,96349.0,0.3648]
[1736862284970,0.001,96366.0,96360.0,0.3608]
[1736862285176,0.001,96366.0,96357.0,0.3608]
[1736862285378,0.3608,96390.0,96365.0,0.3608]
[1736862286076,0.3608,96390.0,96370.0,0.15471612]
[1736862286280,0.3608,96390.0,96366.0,0.001]
[1736862286576,0.15471612,96380.0,96366.0,0.001]
[1736862286781,0.15471612,96380.0,96365.0,0.3608]
[1736862286983,0.51651612,96390.0,96365.0,0.3608]
[1736862287284,0.51551612,96390.0,96365.0,0.3608]
[1736862287681,0.3608,96382.0,96365.0,0.3608]
[1736862287986,0.3608,96382.0,96366.0,0.001]
[1736862288683,0.3608,96382.0,96367.0,0.1609]
[1736862289571,0.10347085,96380.0,96367.0,0.1609]
[1736862289773,0.10447085,96380.0,96367.0,0.1609]
[1736862290175,0.10347085,96380.0,96367.0,0.1609]
[1736862290380,0.3618,96382.0,96367.0,0.1629]
[1736862290574,0.10347085,96380.0,96367.0,0.1629]
[1736862290781,0.10347085,96380.0,96367.0,0.1609]
[1736862290976,0.10447085,96380.0,96367.0,0.1629]
[1736862291578,0.10347085,96380.0,96367.0,0.1629]
[1736862292085,0.10347085,96380.0,96367.0,0.1639]
[1736862293280,0.10347085,96380.0,96367.0,0.1619]
[1736862293587,0.10447085,96380.0,96367.0,0.1629]
[1736862294583,0.10447085,96380.0,96367.0,0.1619]
[1736862294882,0.051901,96379.0,96367.0,0.002]
[1736862295387,0.051901,96379.0,96367.0,0.001]
[1736862295589,0.051901,96379.0,96367.0,0.002]
[1736862296089,0.10447085,96380.0,96367.0,0.002]
[1736862296486,0.051902,96379.0,96367.0,0.002]
[1736862297077,0.10447085,96380.0,96367.0,0.002]
[1736862297282,0.10347085,96380.0,96367.0,0.001]
[1736862297480,0.10447085,96380.0,96367.0,0.002]
[1736862298090,0.10347085,96380.0,96367.0,0.002]
[1736862298590,0.10347085,96380.0,96367.0,0.001]
[1736862298786,0.10347085,96380.0,96367.0,0.002]
[1736862300295,0.10347085,96380.0,96367.0,0.001]
[1736862300593,0.10347085,96380.0,96367.0,0.002]
[1736862300790,0.051902,96379.0,96367.0,0.002]
[1736862300995,0.3608,96374.0,96367.0,0.001]
[1736862301186,0.3608,96374.0,96367.0,0.002]
[1736862301389,0.3608,96374.0,96367.0,0.001]
[1736862301593,0.3608,96374.0,96367.0,0.002]
[1736862301791,0.3608,96374.0,96367.0,0.001]
[1736862301998,0.3608,96375.0,96368.0,0.001]
[1736862302183,0.3608,96375.0,96367.0,0.002]
[1736862302699,0.3608,96383.0,96368.0,0.052907]
[1736862302896,0.3608,96393.0,96382.0,0.3608]
[1736862303092,0.3608,96393.0,96370.0,0.10347085]
[1736862303093,0.10347085,96392.0,96370.0,0.10347085]
[1736862303591,0.37187246,96393.0,96373.0,0.051905]
[1736862303789,0.37187246,96393.0,96374.0,0.3142]
[1736862303992,0.00155677,96405.0,96389.0,0.3608]
[1736862304188,0.00155677,96405.0,96390.0,0.31686585]
[1736862304394,0.00155677,96405.0,96390.0,0.31786585]
[1736862304997,0.00155677,96405.0,96390.0,0.26497085]
[1736862305195,0.00155677,96405.0,96398.0,0.3608]
[1736862305392,0.3608,96414.0,96399.0,0.365191]
[1736862305595,0.3608,96428.0,96409.0,0.3608]
[1736862305893,0.3608,96428.0,96419.0,0.3608]
[1736862306090,0.24839544,96429.0,96427.0,0.3608]
[1736862306486,0.24839544,96429.0,96428.0,0.001]
[1736862306800,0.27981371,96437.0,96429.0,0.051874]
[1736862306995,0.27981371,96437.0,96428.0,0.1577]
[1736862306996,0.00041,96439.0,96428.0,0.1567]
[1736862307896,0.001,96429.0,96428.0,0.1567]
[1736862308297,0.001,96429.0,96427.0,0.3618]
[1736862308495,0.00141,96439.0,96428.0,0.001]
[1736862308799,0.009,96428.0,96420.0,0.1538]
[1736862309000,0.009,96428.0,96423.0,0.3608]
[1736862309301,0.009,96428.0,96424.0,0.001]
[1736862309497,0.009,96428.0,96424.0,0.052877]
[1736862309800,0.00141,96439.0,96424.0,0.052877]
[1736862309801,0.00141,96439.0,96424.0,0.352877]
[1736862310112,0.00041,96439.0,96436.0,0.3608]
[1736862310398,0.00041,96439.0,96437.0,0.1613]
[1736862310596,0.00041,96439.0,96423.0,0.3608]
[1736862310806,0.001,96428.0,96423.0,0.3608]
[1736862310998,0.001,96428.0,96424.0,0.001]
[1736862311500,0.10347085,96434.0,96423.0,0.3608]
[1736862311700,0.10347085,96434.0,96423.0,0.3618]
[1736862311902,0.009,96423.0,96415.0,0.3608]
[1736862313299,0.009,96423.0,96415.0,0.3628]
[1736862314202,0.01,96423.0,96416.0,0.001]
[1736862314797,0.00041,96439.0,96417.0,0.051881]
[1736862315104,0.00041,96439.0,96433.0,0.3608]
[1736862315304,0.00041,96439.0,96423.0,0.3608]
[1736862316205,0.051873,96432.0,96416.0,0.002]
[1736862316400,0.051873,96432.0,96415.0,0.3608]
[1736862316604,0.051873,96432.0,96423.0,0.001]
[1736862317204,0.051873,96432.0,96423.0,0.003]
[1736862317404,0.3608,96426.0,96423.0,0.003]
[1736862317802,0.3608,96426.0,96423.0,0.001]
[1736862318003,0.3608,96426.0,96423.0,0.002]
[1736862318908,0.3608,96426.0,96423.0,0.003]
[1736862319506,0.3618,96426.0,96423.0,0.003]
[1736862320509,0.001,96426.0,96423.0,0.003]
[1736862320912,0.001,96426.0,96424.0,0.001]
[1736862321310,0.3608,96445.0,96425.0,0.1523]
[1736862321504,0.3608,96445.0,96436.0,0.3608]
[1736862321910,0.3608,96453.0,96444.0,0.3608]